bitfinex/quotes_ETHUSD_20241103
["timestamp","ask_amount","ask_price","bid_price","bid_amount"]
[1730624383350,5.71143,2460.3,2459.9,4.06518]
[1730624383550,7.15606792,2460.3,2459.9,4.06518]
[1730624384668,8.85667227,2460.3,2459.9,4.06518]
[1730624384988,7.15606792,2460.3,2459.9,4.06518]
[1730624385553,8.85667227,2460.3,2459.9,4.06518]
[1730624390177,8.1298,2460.2,2459.9,4.06518]
[1730624390979,9.83040435,2460.2,2459.9,4.06518]
[1730624396294,9.83040435,2460.2,2459.7,5.5977]
[1730624396491,9.83040435,2460.2,2459.8,4.23249132]
[1730624396799,9.83040435,2460.2,2459.9,0.16725132]
[1730624397094,9.83040435,2460.2,2459.8,4.06524]
[1730624397272,9.83040435,2460.2,2459.9,0.1672648]
[1730624397473,9.83040435,2460.2,2459.8,4.06524]
[1730624397786,9.83040435,2460.2,2459.9,0.16726788]
[1730624397985,9.83040435,2460.2,2459.8,4.06524]
[1730624398296,9.83040435,2460.2,2459.9,0.16728078]
[1730624398498,9.83040435,2460.2,2459.8,4.06524]
[1730624398674,9.83040435,2460.2,2459.9,0.16727761]
[1730624398873,9.83040435,2460.2,2459.8,4.06524]
[1730624399084,9.83040435,2460.2,2459.9,0.16727764]
[1730624399276,9.83040435,2460.2,2459.9,4.0652]
[1730624400213,9.83040435,2460.2,2459.9,4.04034]
[1730624401190,1.70060435,2460.1,2459.9,4.04034]
[1730624401466,8.1298,2460.0,2459.9,4.04034]
[1730624401675,8.1298,2460.0,2459.9,4.20767405]
[1730624402696,8.1298,2460.0,2459.9,5.75577405]
[1730624403428,8.1298,2460.0,2459.9,9.65187517]
[1730624403593,8.1298,2460.0,2459.9,10.08695873]
[1730624403761,5.76497435,2460.4,2460.1,1.5581]
[1730624404103,1.70060435,2460.3,2460.1,1.5481]
[1730624404978,1.70060435,2460.2,2460.1,1.5481]
[1730624405379,1.70060435,2460.3,2460.1,1.71541529]
[1730624405590,1.70060435,2460.2,2460.1,1.5481]
[1730624405966,1.70060435,2460.2,2460.1,1.71543166]
[1730624406200,1.70060435,2460.2,2460.1,1.5481]
[1730624407177,1.70060435,2460.3,2460.1,1.71541529]
[1730624407381,1.70060435,2460.3,2460.1,1.5481]
[1730624408611,1.70060435,2460.2,2460.1,1.5481]
[1730624408909,1.70060435,2460.2,2460.1,1.71542415]
[1730624409316,1.70060435,2460.2,2460.1,1.5481]
[1730624409690,3.70060435,2460.3,2460.1,1.71542795]
[1730624409885,3.70060435,2460.3,2460.1,1.5481]
[1730624410878,3.70060435,2460.3,2460.2,4.06471]
[1730624411114,3.70060435,2460.3,2460.2,4.23201955]
[1730624411314,3.70060435,2460.3,2460.2,4.232016]
[1730624411625,3.70060435,2460.3,2460.2,4.06471]
[1730624411824,2.0,2460.3,2460.2,4.23199636]
[1730624413521,2.0,2460.3,2460.2,6.880101]
[1730624413876,2.0,2460.3,2460.2,7.14767104]
[1730624414083,2.0,2460.3,2460.2,10.14759994]
[1730624414282,2.0,2460.3,2460.2,12.23016716]
[1730624415032,2.0,2460.3,2460.2,13.07252421]
[1730624415524,2.0,2460.3,2460.2,12.23016716]
[1730624416088,2.0,2460.3,2460.2,13.07252421]
[1730624416507,2.0,2460.3,2460.2,12.23016716]
[1730624416898,2.0,2460.3,2460.2,12.22626971]
[1730624417304,2.0,2460.3,2460.2,12.22621624]
[1730624417987,2.0,2460.3,2460.2,11.456937]
[1730624418210,2.0,2460.3,2460.2,12.22466412]
[1730624418490,2.0,2460.3,2460.2,11.1781907]
[1730624419488,2.0,2460.3,2460.2,10.48054176]
[1730624420889,2.0,2460.3,2460.2,10.14672271]
[1730624421330,2.0,2460.3,2460.2,9.71281464]
[1730624421488,2.0,2460.3,2460.2,10.14682646]
[1730624422998,2.0,2460.3,2460.2,8.89522793]
[1730624424734,2.0,2460.3,2460.2,8.72831]
[1730624424922,2.0,2460.3,2460.2,8.89506404]
[1730624426626,2.0,2460.3,2460.2,8.89503334]
[1730624427433,2.0,2460.3,2460.2,8.72831]
[1730624427917,2.0,2460.3,2460.2,8.89501743]
[1730624428324,2.0,2460.3,2460.2,8.72831]
[1730624428501,2.0,2460.3,2460.2,8.89496405]
[1730624428696,2.0,2460.3,2460.2,8.72831]
[1730624429222,2.0,2460.3,2460.2,8.89493607]
[1730624429422,2.0,2460.3,2460.2,8.72831]
[1730624441354,2.0,2460.3,2460.2,8.89489339]
[1730624442440,2.0,2460.3,2460.2,8.72831]
[1730624443360,2.0,2460.3,2460.2,4.25134277]
[1730624443542,2.36493,2460.3,2460.2,4.08471]
[1730624444537,2.36493,2460.3,2460.2,0.01]
[1730624444742,4.01423,2460.3,2460.0,4.07496]
[1730624444945,4.01423,2460.3,2460.1,4.07484]
[1730624445271,0.401423,2460.2,2460.0,4.07496]
[1730624445624,0.401423,2460.2,2459.9,0.01]
[1730624445625,1.6493,2460.1,2459.9,0.01]
[1730624445825,1.6493,2460.1,2459.9,4.07519]
[1730624446537,1.6493,2460.1,2459.9,0.01]
[1730624446737,1.6493,2460.1,2459.9,4.07519]
[1730624446939,2.4973283,2460.1,2459.9,4.07519]
[1730624449037,1.6479453,2460.1,2459.9,4.07519]
[1730624450039,1.6479453,2460.1,2460.0,4.06504]
[1730624452307,1.6479453,2460.1,2459.9,0.01]
[1730624452594,1.6479453,2460.1,2459.9,4.07518]
[1730624453054,4.06492,2460.1,2459.5,0.01]
[1730624453255,1.6493,2459.9,2459.5,0.01]
[1730624453485,4.06546,2459.8,2459.5,0.01]
[1730624455125,8.13094,2459.8,2459.5,0.01]
[1730624455256,4.06556,2459.7,2459.5,0.01]
[1730624456090,8.13097,2459.8,2459.5,0.01]
[1730624456402,9.108997,2459.8,2459.5,0.01]
[1730624457756,5.043487,2459.8,2459.5,0.01]
[1730624457962,9.108947,2459.8,2459.5,0.01]
[1730624458386,5.043487,2459.8,2459.5,0.01]
[1730624461404,1.6493,2459.9,2459.6,0.01]
[1730624461559,1.6116,2460.1,2459.6,1.6411]
[1730624461764,5.67655,2460.1,2459.6,1.6411]
[1730624462796,9.74153,2460.1,2459.6,1.6411]
[1730624463003,10.915683,2460.1,2459.6,1.6411]
[1730624463169,4.06506,2460.0,2459.6,1.6411]
[1730624463359,6.850703,2460.1,2459.6,0.01]
[1730624463566,4.06522,2459.9,2459.6,0.01]
[1730624465869,6.850703,2460.1,2459.6,0.01]
[1730624466065,6.850703,2460.1,2459.6,4.07568]
[1730624466313,1.6116,2460.1,2459.7,0.01]
[1730624467297,5.67661,2460.1,2459.7,0.01]
[1730624468444,1.6116,2460.1,2459.7,0.01]
[1730624468737,1.6116,2460.1,2459.7,5.59505]
[1730624469137,1.6116,2460.1,2459.7,5.59504]
[1730624469335,1.6116,2460.1,2459.7,6.562118]
[1730624469740,5.67647,2460.1,2459.7,6.562118]
[1730624469898,1.6116,2460.1,2459.7,2.496678]
[1730624470103,4.06471,2460.2,2459.7,6.562098]
[1730624470527,4.06471,2460.2,2459.7,10.627528]
[1730624470802,4.06471,2460.2,2459.7,6.562098]
[1730624470996,1.5956,2460.0,2459.3,5.59569]
[1730624471197,4.0652,2459.9,2459.3,5.59569]
[1730624471396,5.66077,2460.0,2459.6,0.01]
[1730624471624,9.72595,2460.0,2459.6,0.02]
[1730624471826,5.66077,2460.0,2459.6,0.01]
[1730624472040,4.06537,2459.8,2459.6,0.01]
[1730624472247,8.13082,2459.8,2459.4,0.01]
[1730624472403,8.13086,2459.8,2459.6,0.01]
[1730624472734,8.13086,2459.8,2459.3,0.01]
[1730624472735,4.06579,2459.6,2459.3,0.01]
[1730624475029,8.13158,2459.6,2459.3,0.01]
[1730624475195,5.038508,2459.6,2459.3,0.01]
[1730624475402,4.06586,2459.5,2459.3,0.01]
[1730624476213,0.972718,2459.6,2459.3,0.01]
[1730624476401,5.038488,2459.6,2459.3,0.01]
[1730624477033,5.038488,2459.6,2459.1,4.07649]
[1730624477242,4.06577,2459.6,2459.1,4.08649]
[1730624477537,8.13156,2459.6,2459.3,0.01]
[1730624478312,4.06577,2459.6,2459.3,0.01]
[1730624479034,8.13161,2459.6,2459.3,0.01]
[1730624479442,4.06591,2459.5,2459.1,4.08649]
[1730624480114,4.0657,2459.6,2459.3,0.01]
[1730624480532,4.0657,2459.6,2459.1,4.08637]
[1730624480717,8.13154,2459.6,2459.1,4.08637]
[1730624480930,8.13154,2459.6,2459.3,0.01]
[1730624481131,9.104254,2459.6,2459.3,0.01]
[1730624481503,5.038414,2459.6,2459.3,0.01]
[1730624482005,9.104264,2459.6,2459.3,0.01]
[1730624483027,9.104264,2459.6,2459.1,4.08637]
[1730624483028,5.66153,2459.5,2459.1,4.08637]
[1730624483406,5.66153,2459.5,2459.3,0.01]
[1730624483606,1.5956,2459.5,2459.3,0.01]
[1730624484829,4.06622,2459.3,2459.1,0.01]
[1730624486140,1.6201,2459.2,2458.8,0.01]
[1730624486312,5.68648,2459.2,2458.8,4.07695]
[1730624486512,5.68648,2459.2,2458.8,4.08695]
[1730624488240,9.75296,2459.2,2458.8,0.02]
[1730624488450,10.728256,2459.2,2458.8,0.02]
[1730624488607,6.661776,2459.2,2458.8,0.02]
[1730624489037,10.728226,2459.2,2458.8,0.02]
[1730624489245,6.661776,2459.2,2458.8,0.02]
[1730624489740,4.06653,2459.1,2458.8,0.02]
[1730624491013,6.661826,2459.2,2458.8,0.02]
[1730624491209,5.68653,2459.2,2458.8,0.02]
[1730624491403,9.75301,2459.2,2458.8,0.02]
[1730624491951,5.68653,2459.2,2458.8,4.08701]
[1730624492110,4.06615,2459.4,2459.0,0.01]
[1730624492111,4.06605,2459.4,2459.0,0.01]
[1730624493242,4.06622,2459.3,2459.0,0.01]
[1730624494510,8.13224,2459.4,2459.0,0.01]
[1730624494759,4.06624,2459.3,2459.0,0.01]
[1730624497409,4.06651,2459.2,2459.0,0.01]
[1730624497639,5.041479,2459.3,2459.0,0.01]
[1730624497850,4.06652,2459.1,2459.0,0.01]
[1730624498211,4.06652,2459.1,2458.8,0.02]
[1730624504262,5.68648,2459.2,2458.8,0.02]
[1730624505149,4.06654,2459.1,2458.8,0.02]
[1730624506630,5.68648,2459.2,2458.8,0.02]
[1730624507145,9.75296,2459.2,2458.8,0.02]
[1730624508025,5.68648,2459.2,2458.8,4.087]
[1730624508358,1.6201,2459.2,2458.8,4.087]
[1730624508576,5.041499,2459.3,2458.8,4.087]
[1730624508934,4.06643,2459.2,2458.8,0.02]
[1730624514764,4.06643,2459.2,2458.8,0.02]
[1730624516269,4.06643,2459.2,2458.8,0.18715834]
[1730624518668,5.76887976,2459.5,2459.2,0.01]
[1730624518967,1.70292976,2459.6,2459.2,0.01]
[1730624519176,4.06571,2459.6,2459.3,1.5107]
[1730624519877,4.06588,2459.5,2459.3,1.5107]
[1730624520934,4.06603,2459.4,2459.2,0.01]
[1730624522173,5.71193,2459.4,2459.0,0.02]
[1730624522379,5.71193,2459.4,2459.2,0.01]
[1730624523191,5.71193,2459.4,2459.0,0.02]
[1730624524256,9.77806,2459.4,2459.1,0.16726785]
[1730624524461,9.77804,2459.4,2459.0,0.02]
[1730624524659,5.71193,2459.4,2459.1,0.16726158]
[1730624524992,5.71193,2459.4,2459.0,0.02]
[1730624525286,5.71193,2459.4,2459.2,0.01]
[1730624526479,5.71193,2459.4,2459.0,4.08666]
[1730624526686,5.71193,2459.4,2459.1,0.16730051]
[1730624526857,6.85999598,2459.4,2459.1,0.16730051]
[1730624527888,4.06636,2459.2,2459.1,0.16730051]
[1730624530367,5.67216,2459.2,2459.1,0.16730051]
[1730624530750,7.37508976,2459.2,2459.1,0.16730051]
[1730624532195,7.3799265,2459.2,2459.1,0.16730051]
[1730624532349,8.85269448,2459.2,2459.1,0.16730051]
[1730624533609,4.06683,2459.0,2458.8,0.26796726]
[1730624533889,5.67265,2458.9,2458.8,0.26796726]
[1730624534106,7.3804165,2458.9,2458.8,0.26796726]
[1730624534310,5.67265,2458.9,2458.8,0.26796726]
[1730624534455,8.99456645,2458.9,2458.8,0.26796726]
[1730624534917,6.86009583,2458.9,2458.8,0.26796726]
[1730624535277,9.86009583,2458.9,2458.8,0.26796726]
[1730624535585,8.67315,2458.6,2458.5,0.33466415]
[1730624535910,18.94103032,2458.6,2458.5,0.33466415]
[1730624536123,21.49793199,2458.6,2458.5,0.33466415]
[1730624536408,23.63049307,2458.6,2458.5,0.33466415]
[1730624536823,25.76307718,2458.6,2458.5,0.33466415]
[1730624538089,23.63049307,2458.6,2458.5,0.33466415]
[1730624540515,25.75861232,2458.6,2458.5,0.33466415]
[1730624541217,27.88583791,2458.6,2458.5,0.33466415]
[1730624541576,30.01295863,2458.6,2458.5,0.33466415]
[1730624542215,30.01221895,2458.6,2458.5,0.33466415]
[1730624543509,21.49033271,2458.6,2458.5,0.33466415]
[1730624543712,21.49033271,2458.6,2458.3,0.0610881]
[1730624543713,8.60298,2458.4,2458.3,0.0610881]
[1730624544044,19.99238527,2458.4,2458.3,0.0610881]
[1730624567959,21.68957112,2458.4,2458.3,8.1e-06]
[1730624568937,22.11430047,2458.4,2458.3,8.1e-06]
[1730624569263,22.11584171,2458.4,2458.3,8.1e-06]
[1730624571967,22.11648462,2458.4,2458.3,8.1e-06]
[1730624572348,19.99238527,2458.4,2458.3,8.1e-06]
[1730624575189,22.54285036,2458.4,2458.3,8.1e-06]
[1730624575349,19.99238527,2458.4,2458.3,8.1e-06]
[1730624575552,22.54285036,2458.4,2458.3,8.1e-06]
[1730624576588,19.99238527,2458.4,2458.3,8.1e-06]
[1730624576797,22.54538539,2458.4,2458.3,8.1e-06]
[1730624577157,19.99238527,2458.4,2458.3,8.1e-06]
[1730624579300,22.96792787,2458.4,2458.3,8.1e-06]
[1730624580307,19.99238527,2458.4,2458.3,8.1e-06]
[1730624581377,22.97676074,2458.4,2458.3,8.1e-06]
[1730624582106,19.99238527,2458.4,2458.3,8.1e-06]
[1730624582309,22.97665018,2458.4,2458.3,8.1e-06]
[1730624582506,19.99238527,2458.4,2458.3,8.1e-06]
[1730624583308,22.97665018,2458.4,2458.3,8.1e-06]
[1730624584671,18.45708527,2458.4,2458.3,1.5170081]
[1730624584865,15.20158,2458.4,2458.3,1.5170081]
[1730624585167,17.75971833,2458.4,2458.3,1.5170081]
[1730624585725,12.20158,2458.4,2458.3,1.5170081]
[1730624586220,14.33314701,2458.4,2458.3,1.5170081]
[1730624587500,12.20158,2458.4,2458.3,1.5170081]
[1730624587704,14.33316365,2458.4,2458.3,1.5170081]
[1730624589296,14.33311488,2458.4,2458.3,1.5170081]
[1730624591253,14.33302831,2458.4,2458.3,1.5170081]
[1730624595649,14.33298498,2458.4,2458.3,1.5170081]
[1730624597936,14.75012825,2458.4,2458.3,1.5170081]
[1730624600416,16.88147918,2458.4,2458.3,1.5170081]
[1730624600754,16.46433591,2458.4,2458.3,1.5170081]
[1730624601111,16.46433288,2458.4,2458.3,1.5170081]
[1730624604550,14.3329279,2458.4,2458.3,8.1e-06]
[1730624605051,15.20158,2458.4,2458.3,8.1e-06]
[1730624605424,17.7593703,2458.4,2458.3,8.1e-06]
[1730624605726,20.10644133,2458.4,2458.3,8.1e-06]
[1730624606654,21.75024133,2458.4,2458.3,8.1e-06]
[1730624609654,19.19245103,2458.4,2458.3,8.1e-06]
[1730624610055,22.17706186,2458.4,2458.3,8.1e-06]
[1730624612129,19.19245103,2458.4,2458.3,8.1e-06]
[1730624612572,17.54865103,2458.4,2458.3,8.1e-06]
[1730624612736,14.75956916,2458.4,2458.3,8.1e-06]
[1730624612939,12.20158,2458.4,2458.3,8.1e-06]
[1730624614429,15.20158,2458.4,2458.3,8.1e-06]
[1730624614630,12.20158,2458.4,2458.3,8.1e-06]
[1730624615068,14.33307376,2458.4,2458.3,8.1e-06]
[1730624615451,12.20158,2458.4,2458.3,8.1e-06]
[1730624615654,14.33311468,2458.4,2458.3,8.1e-06]
[1730624615835,12.20158,2458.4,2458.3,8.1e-06]
[1730624616037,14.33312212,2458.4,2458.3,8.1e-06]
[1730624616967,12.20158,2458.4,2458.3,8.1e-06]
[1730624617591,13.90675545,2458.4,2458.3,8.1e-06]
[1730624617955,12.20158,2458.4,2458.3,8.1e-06]
[1730624618548,13.9068085,2458.4,2458.3,8.1e-06]
[1730624619493,13.90686083,2458.4,2458.3,8.1e-06]
[1730624620275,12.20158,2458.4,2458.3,8.1e-06]
[1730624620985,13.90693348,2458.4,2458.3,8.1e-06]
[1730624621499,9.83925348,2458.4,2458.3,8.1e-06]
[1730624621794,9.83925348,2458.4,2458.3,1.5385081]
[1730624622002,8.1339,2458.4,2458.3,2.10017591]
[1730624625756,12.20158,2458.4,2458.3,8.1e-06]
[1730624625957,13.90693348,2458.4,2458.3,8.1e-06]
[1730624627993,4.06812,2458.2,2458.0,1.45937279]
[1730624628360,8.1339,2458.1,2458.0,1.45937279]
[1730624633036,12.20208,2458.1,2457.8,1.5485]
[1730624634097,12.20208,2458.1,2457.8,1.5385]
[1730624636522,4.06843,2458.0,2457.8,1.5385]
[1730624637002,8.1339,2457.9,2457.8,1.5385]
[1730624641531,12.20247,2457.9,2457.6,1.5105]
[1730624642019,4.06869,2457.8,2457.6,1.5005]
[1730624642393,12.20247,2457.9,2457.6,1.5105]
[1730624643126,12.20247,2457.9,2457.6,1.5005]
[1730624643309,12.20247,2457.9,2457.6,1.5105]
[1730624644089,12.20247,2457.9,2457.6,1.5005]
[1730624644290,12.20247,2457.9,2457.6,1.5105]
[1730624644524,10.14491417,2457.9,2457.6,1.5005]
[1730624644724,4.06877,2457.8,2457.6,1.5005]
[1730624645822,8.1339,2457.9,2457.6,5.57949]
[1730624646795,10.1339,2457.9,2457.6,5.57949]
[1730624646993,10.1339,2457.9,2457.7,1.5005]
[1730624647192,4.06867,2457.8,2457.4,4.0792]
[1730624647421,4.06867,2457.8,2457.5,1.5005]
[1730624647639,8.1339,2457.7,2457.5,1.5005]
[1730624648713,8.1339,2457.7,2457.6,5.74141]
[1730624648970,8.1339,2457.7,2457.6,5.90814268]
[1730624649134,8.1339,2457.7,2457.6,10.1725861]
[1730624649444,8.1339,2457.7,2457.6,10.1825861]
[1730624649638,1.70598511,2458.6,2458.4,0.01]
[1730624649833,1.70598511,2458.6,2458.5,1.6624]
[1730624650038,1.70598511,2458.7,2458.5,1.6624]
[1730624651266,5.77309511,2458.8,2458.5,1.6624]
[1730624653052,2.49662867,2458.8,2458.5,1.6624]
[1730624653252,4.06735,2458.6,2458.5,1.6624]
[1730624654594,4.06726,2458.7,2458.5,1.6624]
[1730624658190,4.06735,2458.6,2458.5,1.6624]
[1730624658392,4.06735,2458.6,2458.0,4.06821]
[1730624658393,4.06761,2458.5,2458.1,1.6724]
[1730624658688,4.0678,2458.4,2458.1,1.6624]
[1730624659198,4.0678,2458.4,2458.1,1.6724]
[1730624659701,4.0678,2458.4,2457.6,0.99772727]
[1730624659702,0.01,2458.1,2457.1,2.66524319]
[1730624659909,5.5936,2457.5,2457.1,0.0610881]
[1730624660207,4.0691,2457.6,2457.1,0.0610881]
[1730624660572,8.13821,2457.6,2457.1,0.0610881]
[1730624660891,4.0691,2457.6,2457.1,0.0610881]
[1730624661089,4.06928,2457.5,2457.1,0.0610881]
[1730624662551,4.0691,2457.6,2457.1,0.0610881]
[1730624662782,4.06917,2457.5,2457.1,0.0610881]
[1730624665136,4.06934,2457.4,2457.1,0.0610881]
[1730624665786,8.13879,2457.4,2457.1,0.0610881]
[1730624665942,4.06934,2457.4,2457.1,0.0610881]
[1730624666933,4.06912,2457.6,2457.1,0.0610881]
[1730624667139,4.06926,2457.5,2457.1,0.0610881]
[1730624667353,4.06948,2457.4,2457.1,0.0610881]
[1730624678705,2.12735928,2458.4,2458.3,0.01]
[1730624678881,0.01,2459.8,2458.3,0.01]
[1730624678882,2.55321708,2458.9,2458.3,0.5406]
[1730624679074,4.06706,2458.8,2458.3,0.5406]
[1730624679306,4.06732,2458.7,2458.3,0.5406]
[1730624682306,8.13423,2458.8,2458.3,0.5406]
[1730624683492,8.1349,2458.7,2458.3,0.5406]
[1730624684085,8.1349,2458.7,2458.3,4.60844]
[1730624684286,8.1349,2458.7,2458.3,4.60833]
[1730624685972,8.1349,2458.7,2458.5,4.06748]
[1730624686208,8.1349,2458.7,2458.4,4.06758]
[1730624688991,8.1349,2458.7,2458.5,4.0674]
[1730624690109,8.1349,2458.7,2458.4,8.13518]
[1730624690314,8.1349,2458.7,2458.4,4.06758]
[1730624690617,8.1349,2458.7,2458.4,4.6151619]
[1730624691379,8.1349,2458.7,2458.5,4.06749]
[1730624692075,8.1349,2458.7,2458.6,4.06735]
[1730624692281,8.1349,2458.7,2458.6,5.64105]
[1730624710820,1.585,2459.5,2458.7,1.5014]
[1730624711134,1.585,2459.5,2458.6,0.08133721]
[1730624711135,1.24,2459.6,2459.2,4.06627]
[1730624711328,10.9388,2459.7,2459.2,4.06627]
[1730624711532,7.41457867,2459.7,2459.2,4.06627]
[1730624711727,4.06573,2459.6,2459.2,4.06627]
[1730624712455,7.41457867,2459.7,2459.3,4.06619]
[1730624712655,3.34902867,2459.7,2459.3,4.06619]
[1730624712864,2.8076,2459.7,2459.3,4.06619]
[1730624713063,1.24,2459.7,2459.4,8.13199]
[1730624713260,1.24,2459.8,2459.6,4.0657]
[1730624713856,1.24,2459.8,2459.5,9.633]
[1730624714560,1.24,2459.8,2459.6,4.06567]
[1730624715560,1.24,2459.8,2459.5,5.56716]
[1730624715760,1.24,2459.8,2459.7,4.06553]
[1730624715932,1.24,2460.0,2459.7,4.06553]
[1730624718245,1.24,2460.0,2459.6,4.06569]
[1730624720969,1.24,2460.0,2459.6,4.06569]
[1730624725161,5.30511,2460.0,2459.5,6.123876]
[1730624725464,1.6128,2459.6,2458.9,4.06678]
[1730624725667,1.6128,2459.6,2459.1,4.06652]
[1730624725986,5.67853,2459.6,2459.1,4.06652]
[1730624726276,4.06588,2459.5,2459.1,4.06652]
[1730624726637,4.0661,2459.4,2458.9,4.06678]
[1730624726936,1.6128,2459.2,2458.7,4.06717]
[1730624727338,4.06654,2459.1,2458.6,4.06725]
[1730624727539,4.06654,2459.1,2458.6,8.13451]
[1730624727844,4.06654,2459.1,2458.6,4.06725]
[1730624728049,8.13319,2459.1,2458.6,4.06725]
[1730624731882,4.0667,2459.0,2458.6,4.06725]
[1730624732895,4.06688,2458.9,2458.5,1.5606]
[1730624733109,4.0667,2459.0,2458.5,5.62807]
[1730624733110,8.13349,2459.0,2458.5,5.62807]
[1730624733259,4.06688,2458.9,2458.5,1.5606]
[1730624733584,4.0667,2459.0,2458.5,5.62809]
[1730624733786,1.6128,2458.8,2458.5,4.06749]
[1730624734807,1.6128,2458.8,2458.6,4.06735]
[1730624735168,5.6795,2459.0,2458.6,4.06735]
[1730624735467,5.6795,2459.0,2458.5,8.13493]
[1730624735878,5.6795,2459.0,2458.5,8.13488]
[1730624736167,5.6795,2459.0,2458.6,4.06735]
[1730624739809,4.06687,2458.9,2458.5,4.06748]
[1730624741278,5.67951,2459.0,2458.5,4.06748]
[1730624745340,5.67951,2459.0,2458.4,4.06758]
[1730624745512,5.67951,2459.0,2458.5,4.630198]
[1730624746709,5.67951,2459.0,2458.6,4.06733]
[1730624746912,8.1342,2458.9,2458.6,4.06733]
[1730624747303,8.1342,2458.9,2458.7,5.62773]
[1730624747494,8.1342,2458.9,2458.8,4.06702]
[1730624747707,8.1342,2458.9,2458.8,5.04462898]
[1730624759743,8.1342,2458.9,2458.8,0.97760898]
[1730624759942,8.1342,2458.9,2458.7,4.06714]
[1730624761502,8.1342,2458.9,2458.5,2.166818]
[1730624761503,9.6778,2458.9,2458.5,6.234248]
[1730624761702,13.74473,2458.9,2458.4,4.06761]
[1730624761925,13.74473,2458.9,2458.4,8.13522]
[1730624763746,13.74473,2458.9,2458.4,4.06761]
[1730624763949,13.74473,2458.9,2458.5,4.0675]
[1730624764951,9.6778,2458.9,2458.5,4.0675]
[1730624765134,9.6778,2458.9,2458.5,5.041411]
[1730624766916,9.6778,2458.9,2458.6,4.06733]
[1730624770315,9.6778,2458.9,2458.7,0.16591373]
[1730624770519,9.6778,2458.9,2458.6,4.06733]
[1730624770713,9.6778,2458.9,2458.7,0.16591604]
[1730624770939,9.6778,2458.9,2458.6,4.06733]
[1730624771150,9.6778,2458.9,2458.7,0.1659131]
[1730624771350,9.6778,2458.9,2458.8,0.16600982]
[1730624771749,8.1342,2458.9,2458.6,4.06733]
[1730624771915,8.1342,2458.9,2458.7,0.16602402]
[1730624772114,8.1342,2458.9,2458.6,5.06275307]
[1730624772421,8.1342,2458.9,2458.7,0.16607979]
[1730624772616,8.1342,2458.9,2458.8,4.23308903]
[1730624772816,8.1342,2458.9,2458.8,5.18923255]
[1730624775875,8.1342,2458.9,2458.8,5.45484486]
[1730624776058,8.1342,2458.9,2458.8,5.53617939]
[1730624776239,8.1342,2458.9,2458.8,8.94653754]
[1730624776434,8.1342,2458.9,2458.8,8.86520301]
[1730624777049,8.1342,2458.9,2458.8,11.86520301]
[1730624777371,2.7823,2459.7,2459.4,4.06599]
[1730624777573,2.7823,2459.7,2459.4,8.13188]
[1730624777936,2.7823,2459.7,2459.4,4.06589]
[1730624778978,2.7823,2459.7,2459.4,8.13184]
[1730624779286,1.24,2459.7,2459.5,4.06584]
[1730624782237,1.24,2459.7,2459.6,4.0657]
[1730624783190,1.24,2459.7,2459.5,4.06584]
[1730624783395,1.24,2459.7,2459.5,8.13155]
[1730624784406,1.24,2459.7,2459.5,4.06577]
[1730624784560,1.24,2459.7,2459.6,0.50532153]
[1730624784761,2.7823,2460.0,2459.6,0.50532153]
[1730624791012,2.7823,2460.0,2459.6,4.57101153]
[1730624793621,2.7823,2460.0,2459.6,0.50532153]
[1730624793826,2.7823,2460.0,2459.5,8.13156]
[1730624794583,2.7823,2460.0,2459.6,4.06568]
[1730624795718,2.7823,2460.0,2459.7,4.06552]
[1730624795877,2.7823,2460.0,2459.6,4.0657]
[1730624796310,2.7823,2460.0,2459.7,4.06551]
[1730624796528,2.7823,2460.0,2459.7,4.06552]
[1730624796812,1.24,2460.0,2459.8,0.08130667]
[1730624797211,2.7809,2460.4,2459.8,0.08130667]
[1730624797778,2.7809,2460.4,2459.7,1.5321]
[1730624799930,2.7809,2460.4,2460.0,4.06502]
[1730624802329,3.465415,2460.4,2459.7,1.5321]
[1730624802528,4.06463,2460.3,2459.3,1.5321]
[1730624802832,4.06463,2460.3,2459.7,4.06545]
[1730624802833,1.5409,2460.2,2459.7,4.06545]
[1730624804632,5.60563,2460.2,2459.3,1.5321]
[1730624804931,2.507926,2460.1,2459.3,1.5321]
[1730624805132,1.5409,2460.1,2459.3,1.5321]
[1730624807382,1.5409,2460.1,2459.6,4.0656]
[1730624808266,1.5409,2460.1,2459.6,8.1312]
[1730624811430,1.5409,2460.1,2459.6,4.0656]
[1730624811631,2.101463,2460.1,2459.6,4.0656]
[1730624812471,1.5409,2460.0,2459.6,4.0656]
[1730624814776,1.5409,2460.0,2459.6,8.13119]
[1730624816434,1.5409,2460.0,2459.6,4.06559]
[1730624816938,1.5409,2460.0,2459.6,8.13119]
[1730624817479,1.5409,2460.0,2459.6,4.06559]
[1730624817639,2.1575193,2460.0,2459.6,4.06559]
[1730624819072,6.2226493,2460.0,2459.4,4.06603]
[1730624819286,1.6591,2459.8,2459.4,4.06603]
[1730624819438,1.6591,2459.8,2459.2,4.06623]
[1730624819779,2.29319193,2459.8,2459.4,4.06595]
[1730624820481,1.6591,2459.8,2459.5,4.06584]
[1730624821242,1.6591,2460.0,2459.6,4.06566]
[1730624821441,1.6591,2460.0,2459.7,4.06551]
[1730624822551,1.6591,2460.0,2459.6,4.06568]
[1730624822739,1.6591,2460.0,2459.5,4.06583]
[1730624822946,1.6591,2459.9,2459.5,4.06583]
[1730624824518,1.6591,2459.9,2459.6,4.06566]
[1730624825043,1.6591,2459.9,2459.6,5.66946772]
[1730624825585,1.6591,2459.9,2459.6,4.14696772]
[1730624825790,1.6591,2459.9,2459.6,8.21257772]
[1730624825948,1.6591,2459.9,2459.6,8.13127]
[1730624826147,1.6591,2459.9,2459.6,4.06561]
[1730624826453,1.6591,2459.9,2459.4,5.58839]
[1730624826656,1.6591,2459.9,2459.6,4.06568]
[1730624827257,1.6591,2459.9,2459.6,4.06562]